[Event "Krakow Championship-A 2022"]
[Site "Krakow"]
[Date "2022.06.28"]
[Round "5.13"]
[White "Lye, Lik Zang"]
[Black "Lim, Zhuo Ren"]
[Result "1/2-1/2"]
[ECO "D45"]
[WhiteElo "2358"]
[BlackElo "2290"]
[Annotator "TA"]
[PlyCount "97"]
[EventDate "2022.06.25"]
[EventType "swiss"]
[EventCountry "POL"]
[SourceTitle "playchess.com"]
[Source "ChessBase"]
[SourceQuality "1"]
[TimeControl "40/5400+30:1800+30"]

{[%evp 10,97,16,4,32,22,26,21,32,24,54,21,29,23,23,23,32,29,28,12,12,0,0,0,0,0,0,0,0,0,0,0,0,0,0,0,0,0,0,-4,0,0,0,-70,-71,-93,0,-8,16,11,9,12,23,19,25,19,26,26,26,8,8,8,8,8,8,8,8,8,8,8,8,8,8,8,8,8,8,8,8,8,8,8,8,0,8,0,8,0,8,0]} 1. d4 {[%emt 0:00:04]} Nf6 {[%emt 0:01:47]} 2. c4 {[%emt 0:00:09]} e6 {[%emt 0:00:05]} 3. Nf3 {[%emt 0:00:10]} d5 {[%emt 0:00:08]} 4. Nc3 {[%emt 0:00:07]} c6 {[%emt 0:00:27]} 5. e3 {[%emt 0:00:05]} Nbd7 {[%emt 0:00:05]} 6. Qc2 {[%emt 0:00:14]} a5 {[%emt 0:00:05] D45: Semi-Slav: 5 e3.} 7. Be2 {[%emt 0:05:42][%cal Bf1e2,Be2c4,Bc4d3,Bd3e4][%mdl 32]} dxc4 {[%emt 0:00:20]} 8. Bxc4 {[%emt 0:00:35]} b5 {[%emt 0:00:04]} 9. Bd3 {[%emt 0:01:21]} Bb7 {[%emt 0:00:22]} 10. O-O {[%emt 0:01:49]} (10. e4 $5 {[%cal Re4e5]}) 10... b4 {[%emt 0:00:30]} 11. Ne4 {[%emt 0:02:29]} Nxe4 {[%emt 0:01:24]} 12. Bxe4 {[%emt 0:00:10] [#]} Be7 $146 {[%emt 0:00:05]} ({Predecessor:} 12... Rc8 13. Ne5 Nxe5 14. dxe5 Qc7 15. f4 c5 16. f5 Bxe4 17. Qxe4 exf5 18. Qxf5 c4 {0-1 (42) Krishnater,K (2410)-Stany,G (2522) Chess.com INT 2020}) 13. b3 {[%emt 0:17:18]} ({Don't play} 13. Bxc6 Rc8 14. Bxd7+ Qxd7 $11) 13... Rc8 {[%emt 0:00:16]} 14. Bb2 {[%emt 0:02:06]} Nf6 {[%emt 0:00:23]} 15. Ne5 {[%emt 0:03:37][%cal Re4c6]} Nxe4 {[%emt 0:03:23]} 16. Qxe4 {[%emt 0:00:20]} O-O {[%emt 0:00:36]} 17. Rfc1 {[%emt 0:08:18][%cal Re5c6]} Qd5 {[%emt 0:13:25]} 18. Qg4 {[%emt 0:08:10]} f5 {[%emt 0:02:26] Prevents e4.} 19. Qf3 {[%emt 0:10:43]} Qxf3 {[%emt 0:03:30]} 20. gxf3 {[%emt 0:02:28][%cal Bg2f3,Bf3f4,Bf4e5][%mdl 32]} c5 {[%emt 0:01:18]} 21. dxc5 {[%emt 0:03:13]} Rxc5 {[%emt 0:01:09]} 22. Bd4 {[%emt 0:06:30]} Rcc8 {[%emt 0:01:02]} 23. Kg2 {[%emt 0:03:52]} Bf6 {[%emt 0:05:22]} 24. Kg3 {[%emt 0:04:05]} g5 {[%emt 0:14:34][%cal Of5f4]} 25. f4 {[%emt 0:02:09]} g4 {[%emt 0:02:59]} 26. Bb6 {[%emt 0:03:19]} (26. h3 $11) 26... h5 $1 $15 {[%emt 0:06:13][%csl Gf6][%cal Rh5h4] [#]} 27. h4 {[%emt 0:01:24]} Ra8 {[%emt 0:05:23]} ({Black should try} 27... Bxe5 $17 28. fxe5 Rc3) 28. Rc7 $11 {[%emt 0:05:28]} Bxe5 {[%emt 0:02:18]} 29. fxe5 {[%emt 0:00:13]} f4+ {[%emt 0:00:03]} 30. exf4 {[%emt 0:01:46]} Be4 {[%emt 0:00:55]} 31. Rd1 {[%emt 0:03:53]} Rf7 {[%emt 0:05:36] Against Re7} 32. Rdd7 {[%emt 0:03:36]} Rxd7 {[%emt 0:00:11]} 33. Rxd7 {[%emt 0:00:03][%mdl 4096] Endgame KRB-KRB} Ra6 {[%emt 0:02:29]} 34. Be3 {[%emt 0:00:59][%cal Of4f5]} Bf5 {[%emt 0:00:16] The position is equal.} 35. Ra7 {[%emt 0:00:43]} Rxa7 {[%emt 0:00:32]} 36. Bxa7 {[%emt 0:00:20] KB-KB} Kf7 {[%emt 0:00:29]} 37. Bb6 {[%emt 0:00:10]} Bb1 {[%emt 0:00:03]} 38. Bxa5 {[%emt 0:00:23]} Kg6 {[%emt 0:00:30]} 39. Bxb4 {[%emt 0:00:33]} Bxa2 {[%emt 0:00:14]} 40. f3 {[%emt 0:00:28]} gxf3 {[%emt 0:00:08]} 41. Kxf3 {[%emt 0:30:03]} Kf5 {[%emt 0:30:12]} 42. Be7 {[%emt 0:00:37] [#] aiming for b4.} (42. Bd6 $5 {[%cal Rb3b4]}) 42... Bxb3 {[%emt 0:00:10]} 43. Kg3 {[%emt 0:00:17]} Bd5 {[%emt 0:00:04]} 44. Bg5 {[%emt 0:00:25]} Ba8 {[%emt 0:00:05]} 45. Bd8 {[%emt 0:00:11]} Bb7 {[%emt 0:00:04]} 46. Bg5 {[%emt 0:00:09]} Ba8 {[%emt 0:00:04]} 47. Bd8 {[%emt 0:00:31]} Bb7 {[%emt 0:00:01]} 48. Bg5 {[%emt 0:00:07]} Ba8 {[%emt 0:00:03]} 49. Bd8 {[%emt 0:00:05] Weighted Error Value: White=0.08 (flawless) /Black=0.06 (flawless)} 1/2-1/2

[Event "Krakow Championship-A 2022"]
[Site "Krakow"]
[Date "2022.06.28"]
[Round "5.14"]
[White "Turcan, Richard"]
[Black "Stevik, Patrik jun."]
[Result "1/2-1/2"]
[ECO "E71"]
[WhiteElo "2278"]
[BlackElo "2188"]
[Annotator "TA"]
[PlyCount "32"]
[EventDate "2022.06.25"]
[EventType "swiss"]
[EventCountry "POL"]
[SourceTitle "playchess.com"]
[Source "ChessBase"]
[SourceQuality "1"]
[TimeControl "40/5400+30:1800+30"]

{[%evp 10,32,43,21,44,52,45,44,51,-51,-45,-43,0,0,0,0,0,0,0,0,0,0,0,0,0]} 1. d4 {[%emt 0:00:10]} Nf6 {[%emt 0:00:09]} 2. c4 {[%emt 0:00:21]} g6 {[%emt 0:00:27]} 3. Nc3 {[%emt 0:00:28]} Bg7 {[%emt 0:00:05]} 4. e4 {[%emt 0:00:30]} d6 {[%emt 0:00:25]} 5. h3 {[%emt 0:05:29]} O-O {[%emt 0:01:01]} 6. Be3 {[%emt 0:00:07]} a6 {[%emt 0:00:06] E71: King's Indian: 4 e4 d6 5 h3.} 7. Be2 {[%emt 0:01:19] [#]} c5 $146 {[%emt 0:03:37]} ({Predecessor:} 7... Nbd7 8. Nf3 c5 9. O-O cxd4 10. Nxd4 Nc5 11. Bf3 e5 12. Nc2 Be6 13. b3 b5 14. cxb5 axb5 15. Bxc5 dxc5 16. Nxb5 {½-½ (60) Riazantsev,A (2671)-Bortnyk,O (2581) Doha 2016}) 8. dxc5 {[%emt 0:02:58]} Qa5 {[%emt 0:03:02][%csl LRc5,LRe4] [#] Threatens to win with ...Nxe4. White is slightly better.} 9. cxd6 {[%emt 0:00:44]} (9. Qa4 $14 Qxa4 10. Nxa4) 9... Nxe4 $1 $15 {[%emt 0:00:07]} 10. dxe7 {[%emt 0:00:13]} Bxc3+ {[%emt 0:00:11]} (10... Re8 $5 {[%cal Re4c3]} 11. Rc1 Nxc3 12. bxc3 Bxc3+ 13. Kf1 Nc6 $15) 11. bxc3 {[%emt 0:00:11] The position is equal.} Qxc3+ {[%emt 0:00:08]} 12. Bd2 {[%emt 0:00:21]} Nxd2 {[%emt 0:00:13]} 13. exf8=Q+ {[%emt 0:00:13]} Kxf8 {[%emt 0:00:08]} 14. Rc1 {[%emt 0:00:24]} Nf3+ $1 {[%emt 0:00:10][%mdl 64] [#] Discovered Attack (Double check)} 15. Kf1 {[%emt 0:00:07]} Nd2+ {[%emt 0:00:12]} 16. Ke1 {[%emt 0:00:18]} Nf3+ $1 {[%emt 0:00:22][%mdl 64] Discovered Attack (Double check).  Weighted Error Value: White=0.24 (precise) /Black=0.10 (very precise)} 1/2-1/2

[Event "Krakow Championship-A 2022"]
[Site "Krakow"]
[Date "2022.06.28"]
[Round "5.15"]
[White "Szustakowski, Antoni"]
[Black "Goroshkov, Maksym"]
[Result "1/2-1/2"]
[ECO "E10"]
[WhiteElo "2265"]
[BlackElo "2226"]
[Annotator "TA"]
[PlyCount "141"]
[EventDate "2022.06.25"]
[EventType "swiss"]
[EventCountry "POL"]
[SourceTitle "playchess.com"]
[Source "ChessBase"]
[SourceQuality "1"]
[TimeControl "40/5400+30:1800+30"]

{[%evp 11,141,4,14,14,17,0,28,0,0,0,0,0,0,-17,-14,-19,-16,-15,-13,-10,16,16,52,52,52,54,54,19,79,-43,-24,-32,-31,-62,-62,-62,-39,-71,-68,-64,-69,-73,-68,-67,-57,-371,-372,-353,-366,-352,-350,-378,-295,-337,-277,-272,-269,-255,-268,-260,-267,-268,-214,-272,-273,-364,-390,-395,0,-325,-315,-380,-365,-376,-295,-321,-292,-498,-81,-81,-81,-81,0,-81,-81,-81,-81,-169,-79,-80,-83,-105,-8,-8,-8,-8,-8,-14,-14,-14,-14,-30,-68,-84,-8,-8,-8,-8,-8,-8,-8,-8,-8,-8,-8,-8,-8,-8,0,-8,-8,-8,-8,-8,-8,-8,0,-8,-8,-8,-8,-18]} 1. d4 {[%emt 0:00:29]} Nf6 {[%emt 0:00:11]} 2. c4 {[%emt 0:00:07]} e6 {[%emt 0:01:38]} 3. Nf3 {[%emt 0:00:42]} d5 {[%emt 0:00:55]} 4. g3 {[%emt 0:00:18]} Bb4+ {[%emt 0:01:19]} 5. Nbd2 {[%emt 0:00:25]} O-O {[%emt 0:02:30]} 6. Bg2 {[%emt 0:00:48]} c5 {[%emt 0:03:23][%cal Bc7c5,Bc5d4,Bd4d3][%mdl 32]} 7. O-O {[%emt 0:13:15] E01: Catalan: Early deviations.} cxd4 {[%emt 0:02:08]} 8. cxd5 {[%emt 0:06:49] [#]} d3 $146 {[%emt 0:05:46]} ({Predecessor:} 8... Qxd5 9. Nb3 d3 10. Nfd4 dxe2 11. Qxe2 Qd7 12. Rd1 Nd5 13. Qc4 Be7 14. Bf4 Nxf4 15. gxf4 {0-1 (28) Xu,X (2532)-Quparadze,G (2516) Konya 2017}) 9. e4 {[%emt 0:02:54][%cal Od5d6] White has an edge.} exd5 {[%emt 0:02:10]} 10. e5 {[%emt 0:00:05]} Ne4 {[%emt 0:00:13]} 11. Nb3 {[%emt 0:10:16]} b6 {[%emt 0:01:42]} 12. a3 {[%emt 0:00:06]} Bc5 {[%emt 0:00:33]} 13. Ne1 {[%emt 0:05:37]} Ba6 {[%emt 0:07:11][%cal Od3d2]} 14. Nxd3 {[%emt 0:15:27]} Nc6 {[%emt 0:01:06]} 15. Ndxc5 {[%emt 0:00:28]} bxc5 {[%emt 0:13:30]} 16. Re1 {[%emt 0:00:14] next Be3 is good for White.} Nxe5 {[%emt 0:10:15]} 17. Nxc5 {[%emt 0:01:46]} Nxc5 {[%emt 0:00:36]} 18. Rxe5 {[%emt 0:00:05]} Bc4 {[%emt 0:00:04]} 19. Bg5 {[%emt 0:06:41] Against Qf6} (19. Bxd5 $5 {[%cal Rc1f4]} Nd3 20. Bxa8 Nxe5 21. Qxd8 Rxd8 22. Bf4 $14) 19... Qc7 {[%emt 0:09:38]} (19... Qb6 $1 $11 {remains equal.}) 20. Rxd5 {[%emt 0:08:50]} ({White should try} 20. Re3 $16) 20... Bxd5 $15 {[%emt 0:00:46]} 21. Bxd5 {[%emt 0:00:11] Strongly threatening Rc1. This bishop pair is nice.} Rac8 $1 {[%emt 0:01:12]} 22. Rc1 {[%emt 0:04:00]} Qd7 {[%emt 0:00:21]} 23. Be3 {[%emt 0:05:38]} Ne6 {[%emt 0:03:35]} (23... Rfd8 $5) 24. Rxc8 {[%emt 0:02:14]} Rxc8 {[%emt 0:00:08]} 25. Qf3 {[%emt 0:00:09]} Rd8 {[%emt 0:02:26]} 26. Bc4 {[%emt 0:00:05]} h6 {[%emt 0:02:35]} 27. h4 $1 {[%emt 0:00:33] Prevents Ng5.} Qa4 {[%emt 0:04:48]} 28. Qg4 {[%emt 0:01:35][%mdl 8192] [#]} (28. Qe4 $15) 28... Rd4 $3 $19 {[%emt 0:01:09][%mdl 512]} 29. Bxd4 {[%emt 0:00:53]} Qxc4 {[%emt 0:00:04]} 30. Qf3 {[%emt 0:00:04]} Qxd4 {[%emt 0:00:33][%mdl 4096] Endgame} 31. b4 {[%emt 0:00:05]} Nf8 {[%emt 0:05:11]} 32. Kg2 {[%emt 0:00:49]} Qb2 {[%emt 0:00:41]} 33. Qe3 {[%emt 0:00:33]} a6 {[%emt 0:00:34]} 34. Qd3 {[%emt 0:01:05] [#]} Qf6 {[%emt 0:00:04]} 35. b5 {[%emt 0:00:28]} axb5 {[%emt 0:01:54]} 36. Qxb5 {[%emt 0:00:04]} Ne6 {[%emt 0:04:26] Threatens to win with ...Qd8.} 37. a4 {[%emt 0:00:52]} Qd8 {[%emt 0:01:47]} 38. Qc6 {[%emt 0:03:42]} Nd4 {[%emt 0:01:23]} 39. Qe4 {[%emt 0:01:00]} Ne6 {[%emt 0:01:18]} 40. Qc6 $1 {[%emt 0:00:37]} h5 {[%emt 0:01:18]} 41. Kg1 {[%emt 0:33:56]} g6 {[%emt 0:30:23]} 42. Qb5 {[%emt 0:00:30]} Qa8 {[%emt 0:02:20]} 43. a5 {[%emt 0:00:37]} Nd4 {[%emt 0:00:52]} 44. Qb6 {[%emt 0:00:04]} (44. Qb4 Nf3+ 45. Kf1) 44... Nc6 $2 {[%emt 0:01:19]} (44... Nf3+ $19 {has better winning chances.} 45. Kf1 Nd2+ 46. Kg1 Nc4) 45. a6 $17 {[%emt 0:00:05]} Kg7 {[%emt 0:00:00]} 46. Qb2+ {[%emt 0:00:00]} Kg8 {[%emt 0:00:00]} 47. Qb6 {[%emt 0:00:00]} Qc8 {[%emt 0:00:00]} 48. Kg2 {[%emt 0:00:00]} Nb8 {[%emt 0:00:00]} 49. Qb7 {[%emt 0:00:00]} (49. a7 $17 Nc6 50. Qe3) 49... Qxb7+ {[%emt 0:00:00]} (49... Qc6+ $19 50. Qxc6 Nxc6) 50. axb7 $19 {[%emt 0:00:00] KN-KP} Kg7 {[%emt 0:00:00] ...Kf6 is the strong threat.} 51. Kf3 {[%emt 0:00:00]} f5 {[%emt 0:00:00]} (51... f6 $17 52. g4 f5 53. gxh5 gxh5) 52. Ke3 $11 {[%emt 0:00:00]} Nc6 {[%emt 0:00:00]} 53. f3 {[%emt 0:00:00]} Kf6 {[%emt 0:00:00]} 54. Kf4 {[%emt 0:00:00]} Nb8 {[%emt 0:00:00]} 55. Ke3 $1 {[%emt 0:00:00]} Ke5 {[%emt 0:00:00]} 56. Kd3 {[%emt 0:00:00]} Nc6 {[%emt 0:00:00]} 57. Ke2 {[%emt 0:00:00]} f4 {[%emt 0:00:00]} (57... Kd4 $17 58. Kd2 Nb8) 58. gxf4+ {[%emt 0:00:00] The position is equal.} Kxf4 {[%emt 0:00:00] Hoping for ...Kg3. KN-K3P} 59. Kf2 {[%emt 0:00:00]} Nb8 {[%emt 0:00:00]} 60. Kg2 $1 {[%emt 0:00:00]} Kf5 {[%emt 0:00:00]} 61. Kf2 {[%emt 0:00:00]} Nd7 {[%emt 0:00:00]} 62. Kg2 {[%emt 0:00:00]} Ke5 {[%emt 0:00:00]} 63. Kg3 {[%emt 0:00:00]} Nb8 {[%emt 0:00:00]} 64. Kf2 {[%emt 0:00:00]} Kf4 {[%emt 0:00:00]} 65. Kg2 $1 {[%emt 0:00:00]} Ke3 {[%emt 0:00:00]} 66. Kg3 {[%emt 0:00:00]} Nd7 {[%emt 0:00:00]} 67. Kg2 $1 {[%emt 0:00:00]} Kf4 {[%emt 0:04:07]} 68. Kf2 {[%emt 0:00:00]} Kf5 {[%emt 0:00:07]} ({Not} 68... Ke5 $2 69. Ke3 $19) 69. Kg2 {[%emt 0:00:00]} Ke6 {[%emt 0:00:16]} 70. Kg3 {[%emt 0:00:00]} Ke5 {[%emt 0:00:03]} 71. Kf2 {[%emt 0:00:00] White happily takes the draw.  Weighted Error Value: White=0.28 (precise) /Black=0.36} 1/2-1/2

[Event "Krakow Championship-A 2022"]
[Site "Krakow"]
[Date "2022.06.28"]
[Round "5.16"]
[White "Mikrut, Dariusz"]
[Black "Kyc, Jerzy"]
[Result "1/2-1/2"]
[ECO "D30"]
[WhiteElo "2361"]
[BlackElo "2213"]
[Annotator "TA"]
[PlyCount "46"]
[EventDate "2022.06.25"]
[EventType "swiss"]
[EventCountry "POL"]
[SourceTitle "playchess.com"]
[Source "ChessBase"]
[SourceQuality "1"]
[TimeControl "40/5400+30:1800+30"]

{[%evp 10,46,21,29,33,29,36,19,23,20,22,21,25,29,66,47,52,52,74,12,7,-1,-7,-10,-7,-31,-16,-19,-17,-27,0,0,0,-12,-1,-3,-4,-8,-2]} 1. d4 {[%emt 0:04:35]} d5 {[%emt 0:00:25]} 2. c4 {[%emt 0:00:31]} c6 {[%emt 0:00:03]} 3. Nf3 {[%emt 0:00:06]} Nf6 {[%emt 0:00:04]} 4. e3 {[%emt 0:00:29]} e6 {[%emt 0:01:07]} 5. Nbd2 {[%emt 0:00:07][%cal Bb1d2,Bd2b3,Bb3d4][%mdl 32]} c5 {[%emt 0:02:23]} 6. cxd5 {[%emt 0:02:44]} Nxd5 {[%emt 0:01:30] D30: Queen's Gambit Declined: Systems without Nc3.} 7. Nb3 {[%emt 0:11:19]} cxd4 {[%emt 0:01:19]} 8. Nbxd4 {[%emt 0:00:24]} Be7 {[%emt 0:00:38] [#]} 9. Bd3 $146 {[%emt 0:07:50]} ({Predecessor:} 9. Be2 O-O 10. O-O Nf6 11. b3 Nbd7 12. Bb2 Nc5 13. Ne5 Ncd7 14. Nc4 Nc5 15. Ne5 Ncd7 16. Nc4 Nc5 17. b4 Nce4 18. a3 Bd7 19. Bf3 Rc8 20. Rc1 Rc7 21. Ne5 {½-½ (21) Dunnington,A (2450)-Flear,G (2435) Toulouse 1996}) 9... O-O {[%emt 0:03:33]} 10. O-O {[%emt 0:02:01]} Qb6 {[%emt 0:05:30]} 11. a3 {[%emt 0:02:28]} Bf6 {[%emt 0:02:49]} 12. e4 {[%emt 0:10:58]} Bxd4 {[%emt 0:00:36]} 13. exd5 {[%emt 0:00:20]} Bf6 {[%emt 0:00:09]} 14. Qc2 {[%emt 0:12:08]} (14. Be3 $16 Qd8 15. d6) 14... h6 {[%emt 0:06:28]} 15. Bc4 {[%emt 0:10:49]} exd5 {[%emt 0:12:24]} 16. Bxd5 {[%emt 0:01:33]} Nc6 {[%emt 0:00:09]} 17. Rb1 {[%emt 0:02:19]} Nd4 {[%emt 0:02:04]} 18. Nxd4 {[%emt 0:00:11]} Bxd4 {[%emt 0:00:09]} 19. b4 {[%emt 0:06:37]} Be6 {[%emt 0:01:41]} 20. Bxe6 {[%emt 0:01:25] The position is equal.} Qxe6 {[%emt 0:04:12]} 21. Qb3 {[%emt 0:00:23]} Rfe8 {[%emt 0:00:38]} 22. Qxe6 {[%emt 0:03:53]} Rxe6 {[%emt 0:00:02]} 23. Bb2 {[%emt 0:00:09]} Bxb2 {[%emt 0:02:14] Weighted Error Value: White=0.11 (very precise) /Black=0.07 (flawless)} 1/2-1/2

[Event "Krakow Championship-A 2022"]
[Site "Krakow"]
[Date "2022.06.28"]
[Round "5.17"]
[White "Jacobsen, Mikkel Manosri"]
[Black "Gahan M G"]
[Result "1-0"]
[ECO "A48"]
[WhiteElo "2251"]
[BlackElo "2248"]
[Annotator "TA"]
[PlyCount "117"]
[EventDate "2022.06.25"]
[EventType "swiss"]
[EventCountry "POL"]
[SourceTitle "playchess.com"]
[Source "ChessBase"]
[SourceQuality "1"]
[TimeControl "40/5400+30:1800+30"]

{[%evp 9,117,5,29,25,25,0,19,23,23,26,43,34,33,16,20,21,20,23,24,27,22,27,27,21,46,18,24,-74,-75,-64,-66,-62,-35,-45,-43,-59,-45,-53,0,-19,-6,-14,-6,-7,-5,-41,-41,-40,-36,-53,-41,-53,-61,-83,-70,-56,-8,-8,-8,-40,-35,-32,-43,-97,-95,-426,12,12,12,14,14,14,14,14,14,20,47,50,254,270,287,260,237,232,306,306,306,306,306,306,280,225,505,509,431,348,1408,1252,5897,5897,5897,5897,4943,3312,5925,5925,5784,5731,1333,707]} 1. d4 {[%emt 0:00:02]} Nf6 {[%emt 0:09:25]} 2. Nf3 {[%emt 0:00:06]} g6 {[%emt 0:00:05]} 3. c4 {[%emt 0:00:03]} Bg7 {[%emt 0:00:04]} 4. e3 {[%emt 0:00:13]} d5 {[%emt 0:00:09]} 5. cxd5 {[%emt 0:00:05]} Nxd5 {[%emt 0:00:04]} 6. e4 {[%emt 0:00:11] D70: Grünfeld: Unusual White 3rd moves (met by ...d5).} Nb6 {[%emt 0:00:28]} 7. Be2 {[%emt 0:00:05] 7.h3 deserves study.} Bg4 {[%emt 0:00:40]} 8. Nbd2 {[%emt 0:00:05] The position is equal.} O-O {[%emt 0:02:59]} 9. h3 {[%emt 0:02:21]} Be6 {[%emt 0:00:50]} 10. Nb3 {[%emt 0:04:18] [#]} Bxb3 $146 {[%emt 0:11:43]} ({Predecessor:} 10... Bc4 11. Na5 Bxe2 12. Qxe2 Qc8 13. Bd2 Na6 14. Rc1 c6 15. d5 c5 16. b4 Nd7 {1-0 (36) Moehn,H (2370)-Poelt,C (2094) Tegernsee 2019}) 11. axb3 {[%emt 0:09:16]} Qd6 {[%emt 0:00:38]} 12. O-O {[%emt 0:00:45]} Nc6 {[%emt 0:02:14]} 13. Be3 {[%emt 0:03:02]} Rfd8 {[%emt 0:01:34][%cal Rg7d4]} 14. d5 {[%emt 0:01:46]} Ne5 {[%emt 0:02:07]} 15. Nd4 {[%emt 0:01:58] aiming for Nb5.} c6 {[%emt 0:00:32] Inhibits Nb5.} 16. f4 {[%emt 0:02:35]} Ned7 {[%emt 0:10:05]} 17. dxc6 {[%emt 0:08:37]} bxc6 {[%emt 0:01:23]} 18. e5 {[%emt 0:01:54] [#]} (18. Rc1 $11 c5 19. Nb5) 18... Nxe5 $1 $17 {[%emt 0:01:41]} 19. fxe5 {[%emt 0:10:01]} Qxe5 {[%emt 0:00:21]} 20. Bf2 {[%emt 0:00:54]} Rxd4 {[%emt 0:03:02]} (20... Qf4 {feels hotter.} 21. Ne6 fxe6 22. Qc1 Qxc1 23. Raxc1 Rd6) 21. Bxd4 {[%emt 0:01:42]} Qxd4+ {[%emt 0:00:05]} 22. Qxd4 {[%emt 0:00:08]} Bxd4+ {[%emt 0:00:03]} 23. Kh1 {[%emt 0:00:20]} Nd7 {[%emt 0:05:14]} ({Black should try} 23... Nd5 $15) 24. Rfd1 {[%emt 0:06:59]} e5 {[%emt 0:02:31]} 25. Bf3 {[%emt 0:08:12]} Rc8 {[%emt 0:05:35]} 26. b4 {[%emt 0:02:36]} f5 {[%emt 0:04:11]} 27. Ra6 {[%emt 0:03:52]} Nb8 {[%emt 0:00:38]} 28. Ra2 {[%emt 0:00:17]} Rc7 {[%emt 0:01:12]} 29. g4 {[%emt 0:04:34]} Kf7 {[%emt 0:00:33]} 30. gxf5 {[%emt 0:00:47]} gxf5 {[%emt 0:00:05]} 31. Rc1 {[%emt 0:00:31]} Ke6 {[%emt 0:07:17]} 32. b5 {[%emt 0:02:38]} c5 {[%emt 0:01:43]} (32... e4 $15 33. Be2 Be3) 33. Be2 $1 $11 {[%emt 0:01:01]} Nd7 {[%emt 0:04:01]} 34. Bc4+ {[%emt 0:01:56]} Kd6 {[%emt 0:00:30]} 35. Rf1 {[%emt 0:00:11]} f4 {[%emt 0:01:42]} 36. Kg2 {[%emt 0:04:46]} (36. b3 $1 $15) 36... Nb6 $17 {[%emt 0:05:07]} 37. b3 {[%emt 0:00:02][%mdl 8192]} (37. Ra6 $17) 37... Re7 $2 {[%emt 0:00:36]} (37... Rg7+ 38. Kf3 $11) (37... Nxc4 $19 38. bxc4 Ke6 39. Ra6+ Kf5) 38. Ra6 $1 $11 {[%emt 0:05:31][%mdl 1024] White has compensation.} Rg7+ {[%emt 0:04:56]} 39. Kf3 $1 {[%emt 0:00:13]} Rg3+ {[%emt 0:00:32]} 40. Ke4 {[%emt 0:00:03]} Re3+ {[%emt 0:01:07]} (40... Rxh3 41. Rxa7 h6 42. Rg7 $16) 41. Kf5 {[%emt 0:30:07]} Rxh3 {[%emt 0:30:32]} 42. Rxa7 {[%emt 0:06:31]} Nc8 {[%emt 0:04:03]} 43. Ra6+ {[%emt 0:04:54]} Ke7 $2 {[%emt 0:06:49]} (43... Kc7 $14) 44. Ke4 $18 {[%emt 0:00:00]} (44. Re6+ Kd7 $11) 44... Re3+ {[%emt 0:00:00]} 45. Kd5 {[%emt 0:00:00]} Kd7 {[%emt 0:00:00][%cal Rc8e7]} 46. Re6 {[%emt 0:00:00] Rh1 is the strong threat.} Ne7+ {[%emt 0:00:00]} 47. Rxe7+ {[%emt 0:00:00]} Kxe7 {[%emt 0:00:00][%mdl 4096] Endgame KRB-KRB} 48. b6 {[%emt 0:00:00][%cal Bb5b6,Bb6b7][%mdl 32] Threatening mate with b7.} Rg3 {[%emt 0:00:00]} 49. b7 {[%emt 0:00:00]} Rg8 {[%emt 0:00:00]} 50. Kc6 {[%emt 0:00:00]} Rf8 {[%emt 0:00:00] [#]} (50... Re8 {is a better defense.} 51. Rh1 (51. Kc7 e4 $11) 51... Kf6) 51. Rh1 $1 {[%emt 0:00:33]} ({And not} 51. Kc7 e4 $11) 51... Kf6 {[%emt 0:00:00]} 52. Rxh7 {[%emt 0:01:31] Strongly threatening Rc7.} ({Worse is} 52. Kc7 e4 $11) 52... Kg6 $2 {[%emt 0:00:00] [#]} (52... Rb8 53. Kc7 Rf8) 53. Rf7 $1 {[%emt 0:01:09][%mdl 512] White is clearly winning.} Rh8 {[%emt 0:00:00]} (53... Rb8 54. Kc7) 54. Rc7 {[%emt 0:00:36] Rc8 would kill now.} ({Less strong is} 54. Kc7 e4 $18) 54... Rb8 {[%emt 0:00:00]} 55. Rc8 {[%emt 0:01:07][%mdl 64] Trapped Piece} Rxb7 {[%emt 0:00:00]} 56. Kxb7 {[%emt 0:00:03]} e4 {[%emt 0:00:00]} 57. Re8 {[%emt 0:01:12]} Kf5 {[%emt 0:00:00]} 58. Bd5 {[%emt 0:00:20]} e3 {[%emt 0:00:00]} 59. Bf3 {[%emt 0:00:07] Quite a comeback for White.  Weighted Error Value: White=0.23 (precise) /Black=0.45} 1-0